fUSD/lending_fUSD_20240422
["ID","MTS","AMOUNT","RATE_DAILY","PERIOD"]
[323217187,1713817927548,-13536592.19,0.00015,2]
[323217188,1713817927558,-4471.26884943,0.00015,2]
[323217189,1713817927567,-5000.0,0.00015,2]
[323217190,1713817927576,-218.27713206,0.00015,2]
[323217191,1713817927586,-483.0,0.00015,2]
[323217192,1713817927595,-256.73745361,0.00015,2]
[323217193,1713817927605,-1475.16708128,0.00015,2]
[323217194,1713817927615,-200.0,0.00015,2]
[323217195,1713817927625,-13033.38861575,0.00015,10]
[323217196,1713817927634,-587.32769421,0.00015,2]
[323217197,1713817927644,-62631.0,0.00015,2]
[323217198,1713817927653,-68390.7238778,0.00015,2]
[323217199,1713817927663,-992.0,0.00015,2]
[323217200,1713817927672,-76791.7900483,0.00015,10]
[323217201,1713817927682,-1003.06,0.00015,2]
[323217202,1713817927692,-150.0,0.00015,15]
[323217203,1713817927701,-5434.0,0.00015,2]
[323217204,1713817927710,-310.08,0.00015,2]
[323217205,1713817927719,-600.0,0.00015002,2]
[323217206,1713817927729,-422.80493,0.00015023,2]
[323217207,1713817927739,-170.174099,0.00015023,2]
[323217208,1713817927748,-266.086607,0.00015023,2]
[323217209,1713817927759,-235.422269,0.00015023,2]
[323217210,1713817927769,-295.963452,0.00015023,2]
[323217211,1713817927779,-173.624432,0.00015023,2]
[323217212,1713817927788,-235.641463,0.00015023,2]
[323217213,1713817927799,-179.057739,0.00015023,2]
[323217214,1713817927809,-1001.162306,0.00015028,2]
[323217215,1713817927819,-1354.090196,0.00015028,2]
[323217216,1713817927829,-333.720769,0.00015028,2]
[323217217,1713817927839,-193.530824,0.00015028,2]
[323217218,1713817927849,-1060.271034,0.00015028,2]
[323217219,1713817927860,-375.581729,0.00015028,2]
[323217220,1713817927874,-211.520006,0.00015028,2]
[323217221,1713817927883,-242.262789,0.00015028,2]
[323217222,1713817927893,-250.38782,0.00015028,2]
[323217223,1713817927903,-4265.685689,0.00015028,2]
[323217224,1713817927913,-921.40352,0.00015028,2]
[323217225,1713817927924,-769.489311,0.00015028,2]
[323217226,1713817927934,-1727.953782,0.00015028,2]
[323217227,1713817927945,-15390.398696,0.00015042,2]
[323217228,1713817927956,-242.35274224,0.00015058,7]
[323217229,1713817927967,-200.0,0.00015058,7]
[323217230,1713817927978,-200.0,0.00015058,7]
[323217231,1713817927987,-200.0,0.00015058,7]
[323217232,1713817927997,-200.0,0.00015058,7]
[323217233,1713817928008,-200.0,0.00015058,7]
[323217234,1713817928018,-200.0,0.00015058,7]
[323217235,1713817928027,-200.0,0.00015058,7]
[323217236,1713817928038,-200.0,0.00015058,7]
[323217237,1713817928048,-200.0,0.00015058,7]
[323217238,1713817928058,-200.0,0.00015058,7]
[323217239,1713817928068,-200.0,0.00015058,7]
[323217240,1713817928077,-500.0,0.00015068,2]
[323217241,1713817928087,-1058.97,0.00015068,2]
[323217242,1713817928097,-500.0,0.00015068,2]
[323217243,1713817928107,-500.0,0.00015068,2]
[323217244,1713817928117,-500.0,0.00015068,2]
[323217245,1713817928126,-500.0,0.00015068,2]
[323217246,1713817928136,-500.0,0.00015068,2]
[323217247,1713817928146,-500.0,0.00015068,2]
[323217248,1713817928156,-500.0,0.00015068,2]
[323217249,1713817928166,-500.0,0.00015068,2]
[323217250,1713817928177,-500.0,0.00015068,2]
[323217251,1713817928187,-500.6726765,0.00015068,2]
[323217252,1713817928197,-500.83366963,0.00015068,2]
[323217253,1713817928206,-500.0,0.00015068,2]
[323217254,1713817928215,-500.66439414,0.00015068,2]
[323217255,1713817928225,-541.56156228,0.00015068,2]
[323217256,1713817928235,-501.19901476,0.00015068,2]
[323217257,1713817928245,-500.0,0.00015068,2]
[323217258,1713817928255,-461.17008063,0.00015068,2]
[323217259,1713817928264,-613.72,0.00015068,2]
[323217260,1713817928274,-500.0,0.00015068,2]
[323217261,1713817928284,-540.41,0.00015068,2]
[323217262,1713817928294,-500.0,0.00015068,2]
[323217263,1713817928306,-501.04226214,0.00015068,2]
[323217264,1713817928315,-500.0,0.00015068,2]
[323217265,1713817928325,-500.0,0.00015068,2]
[323217266,1713817928337,-500.0,0.00015068,2]
[323217267,1713817928347,-502.01839092,0.00015068,2]
[323217268,1713817928357,-490.92758807,0.00015068,2]
[323217269,1713817928366,-319.90968907,0.00015068,2]
[323217270,1713817928375,-500.0,0.00015068,2]
[323217271,1713817928385,-500.0,0.00015068,2]
[323217272,1713817928394,-501.07928387,0.00015068,2]
[323217273,1713817928403,-500.0,0.00015068,2]
[323217274,1713817928412,-1669.03,0.00015068,2]
[323217275,1713817928421,-500.0,0.00015068,2]
[323217276,1713817928430,-1371.14,0.00015068,2]
[323217277,1713817928440,-500.0,0.00015068,2]
[323217278,1713817928449,-500.0,0.00015068,2]
[323217279,1713817928458,-501.20776117,0.00015068,2]
[323217280,1713817928467,-446.87598307,0.00015068,2]
[323217281,1713817928477,-501.10308989,0.00015068,2]
[323217282,1713817928486,-500.0,0.00015068,2]
[323217283,1713817928496,-500.0,0.00015068,2]
[323217284,1713817928506,-498.12099077,0.00015068,2]
[323217285,1713817928514,-776.94,0.00015068,2]
[323217286,1713817928524,-500.0,0.00015068,2]
[323217287,1713817928534,-587.95,0.00015068,2]
[323217288,1713817928544,-543.72748048,0.00015068,2]
[323217289,1713817928556,-1126.73,0.00015068,2]
[323217290,1713817928565,-601.87882454,0.00015068,2]
[323217291,1713817928576,-1027.81,0.00015068,2]
[323217292,1713817928585,-500.0,0.00015068,2]
[323217293,1713817928595,-500.56966935,0.00015068,2]
[323217294,1713817928606,-895.63,0.00015068,2]
[323217295,1713817928616,-500.0,0.00015068,2]
[323217296,1713817928627,-500.0,0.00015068,2]
[323217297,1713817928636,-500.0,0.00015068,2]
[323217298,1713817928647,-500.77188395,0.00015068,2]
[323217299,1713817928658,-560.73,0.00015068,2]
[323217300,1713817928668,-500.0,0.00015068,2]
[323217301,1713817928679,-500.0,0.00015068,2]
[323217302,1713817928688,-501.12356924,0.00015068,2]
[323217303,1713817928698,-541.08,0.00015068,2]
[323217304,1713817928708,-500.0,0.00015068,2]
[323217305,1713817928717,-706.11,0.00015068,2]
[323217306,1713817928727,-629.02,0.00015068,2]
[323217307,1713817928736,-584.95,0.00015068,2]
[323217308,1713817928745,-500.0,0.00015068,2]
[323217309,1713817928756,-1117.61,0.00015068,2]
[323217310,1713817928765,-500.0,0.00015068,2]
[323217311,1713817928775,-1070.74,0.00015068,2]
[323217312,1713817928785,-500.0,0.00015068,2]
[323217313,1713817928795,-500.0,0.00015068,2]
[323217314,1713817928804,-1292.86,0.00015068,2]
[323217315,1713817928815,-292.64863899,0.00015068,2]
[323217316,1713817928825,-502.26916185,0.00015068,2]
[323217317,1713817928834,-500.0,0.00015068,2]
[323217318,1713817928844,-1409.26,0.00015068,2]
[323217319,1713817928853,-895.28,0.00015068,2]
[323217320,1713817928867,-627.63,0.00015068,2]
[323217321,1713817928882,-1508.56,0.00015068,2]
[323217322,1713817928891,-500.0,0.00015068,2]
[323217323,1713817928901,-500.0,0.00015068,2]
[323217324,1713817928911,-500.0,0.00015068,2]
[323217325,1713817928921,-632.96,0.00015068,2]
[323217326,1713817928930,-1031.2,0.00015068,2]
[323217327,1713817928940,-500.0,0.00015068,2]
[323217328,1713817928953,-500.0,0.00015068,2]
[323217329,1713817928965,-500.0,0.00015068,2]
[323217330,1713817928975,-500.0,0.00015068,2]
[323217331,1713817928986,-500.0,0.00015068,2]
[323217332,1713817928996,-718.9,0.00015068,2]
[323217333,1713817929007,-969.56,0.00015068,2]
[323217334,1713817929017,-500.0,0.00015068,2]
[323217335,1713817929026,-500.0,0.00015068,2]
[323217336,1713817929037,-500.0,0.00015068,2]
[323217337,1713817929047,-500.0,0.00015068,2]
[323217338,1713817929057,-500.0,0.00015068,2]
[323217339,1713817929067,-1375.45,0.00015068,2]
[323217340,1713817929077,-643.12,0.00015068,2]
[323217341,1713817929087,-1338.67,0.00015068,2]
[323217342,1713817929097,-1299.86,0.00015068,2]
[323217343,1713817929106,-1086.66,0.00015068,2]
[323217344,1713817929115,-1120.16,0.00015068,2]
[323217345,1713817929125,-960.06,0.00015068,2]
[323217346,1713817929134,-500.0,0.00015068,2]
[323217347,1713817929144,-534.21,0.00015068,2]
[323217348,1713817929154,-753.19,0.00015068,2]
[323217349,1713817929165,-500.0,0.00015068,2]
[323217350,1713817929175,-500.0,0.00015068,2]
[323217351,1713817929184,-500.0,0.00015068,2]
[323217352,1713817929195,-500.0,0.00015068,2]
[323217353,1713817929204,-811.84,0.00015068,2]
[323217354,1713817929219,-1092.53,0.00015068,2]
[323217355,1713817929231,-546.54,0.00015068,2]
[323217356,1713817929241,-500.0,0.00015068,2]
[323217357,1713817929250,-1749.53,0.00015068,2]
[323217358,1713817929261,-500.0,0.00015068,2]
[323217359,1713817929269,-500.0,0.00015068,2]
[323217360,1713817929279,-500.0,0.00015068,2]
[323217361,1713817929288,-500.0,0.00015068,2]
[323217362,1713817929297,-500.0,0.00015068,2]
[323217363,1713817929307,-500.0,0.00015068,2]
[323217364,1713817929316,-500.0,0.00015068,2]
[323217365,1713817929325,-1083.17,0.00015068,2]
[323217366,1713817929336,-500.0,0.00015068,2]
[323217367,1713817929346,-500.0,0.00015068,2]
[323217368,1713817929356,-500.0,0.00015068,2]
[323217369,1713817929365,-500.0,0.00015068,2]
[323217370,1713817929375,-1474.11,0.00015068,2]
[323217371,1713817929384,-1939.69,0.00015068,2]
[323217372,1713817929393,-1150.37,0.00015068,2]
[323217373,1713817929403,-500.0,0.00015068,2]
[323217374,1713817929413,-1191.57,0.00015068,2]
[323217375,1713817929423,-500.0,0.00015068,2]
[323217376,1713817929432,-500.0,0.00015068,2]
[323217377,1713817929442,-873.37,0.00015068,2]
[323217378,1713817929451,-318.75665411,0.00015068,2]
[323217379,1713817929461,-500.0,0.00015068,2]
[323217380,1713817929471,-548.01,0.00015068,2]
[323217381,1713817929480,-860.95,0.00015068,2]
[323217382,1713817929490,-1713.21,0.00015068,2]
[323217383,1713817929499,-778.64,0.00015068,2]
[323217384,1713817929509,-583.38,0.00015068,2]
[323217385,1713817929518,-500.0,0.00015068,2]
[323217386,1713817929527,-983.83,0.00015068,2]
[323217387,1713817929536,-500.0,0.00015068,2]
[323217388,1713817929545,-500.0,0.00015068,2]
[323217389,1713817929555,-848.86,0.00015068,2]
[323217390,1713817929564,-500.0,0.00015068,2]
[323217391,1713817929574,-1645.42,0.00015068,2]
[323217392,1713817929583,-991.23,0.00015068,2]
[323217393,1713817929593,-650.08,0.00015068,2]
[323217394,1713817929602,-919.27,0.00015068,2]
[323217395,1713817929611,-849.94,0.00015068,2]
[323217396,1713817929620,-965.68,0.00015068,2]
[323217397,1713817929630,-500.0,0.00015068,2]
[323217398,1713817929639,-648.35,0.00015068,2]
[323217399,1713817929648,-501.91306649,0.00015068,2]
[323217400,1713817929657,-653.61,0.00015068,2]
[323217401,1713817929668,-849.99,0.00015068,2]
[323217402,1713817929991,-500.0,0.00015068,2]
[323217403,1713817930002,-872.51,0.00015068,2]
[323217404,1713817930012,-883.24,0.00015068,2]
[323217405,1713817930022,-500.0,0.00015068,2]
[323217406,1713817930031,-1446.77,0.00015068,2]
[323217407,1713817930040,-668.79,0.00015068,2]
[323217408,1713817930049,-500.0,0.00015068,2]
[323217409,1713817930058,-500.0,0.00015068,2]
[323217410,1713817930068,-1711.08,0.00015068,2]
[323217411,1713817930078,-500.0,0.00015068,2]
[323217412,1713817930087,-586.1,0.00015068,2]
[323217413,1713817930096,-500.0,0.00015068,2]
[323217414,1713817930107,-643.67,0.00015068,2]
[323217415,1713817930116,-500.0,0.00015068,2]
[323217416,1713817930126,-500.0,0.00015068,2]
[323217417,1713817930136,-500.0,0.00015068,2]
[323217418,1713817930147,-1611.58,0.00015068,2]
[323217419,1713817930158,-500.0,0.00015068,2]
[323217420,1713817930169,-500.0,0.00015068,2]
[323217421,1713817930179,-500.0,0.00015068,2]
[323217422,1713817930189,-710.31,0.00015068,2]
[323217423,1713817930198,-500.0,0.00015068,2]
[323217424,1713817930208,-500.0,0.00015068,2]
[323217425,1713817930218,-941.73,0.00015068,2]
[323217426,1713817930228,-585.05,0.00015068,2]
[323217427,1713817930238,-500.0,0.00015068,2]
[323217428,1713817930248,-1122.42,0.00015068,2]
[323217429,1713817930258,-500.0,0.00015068,2]
[323217430,1713817930267,-758.68,0.00015068,2]
[323217431,1713817930276,-534.62136894,0.00015068,2]
[323217432,1713817930287,-844.75,0.00015068,2]
[323217433,1713817930296,-500.0,0.00015068,2]
[323217434,1713817930306,-500.0,0.00015068,2]
[323217435,1713817930316,-500.0,0.00015068,2]
[323217436,1713817930326,-500.0,0.00015068,2]
[323217437,1713817930335,-1156.31,0.00015068,2]
[323217438,1713817930344,-905.56,0.00015068,2]
[323217439,1713817930355,-1225.61,0.00015068,2]
[323217440,1713817930365,-504.78304332,0.00015068,2]
[323217441,1713817930374,-500.0,0.00015068,2]
[323217442,1713817930384,-762.49,0.00015068,2]
[323217443,1713817930395,-500.0,0.00015068,2]
[323217444,1713817930406,-580.72,0.00015068,2]
[323217445,1713817930417,-1207.15,0.00015068,2]
[323217446,1713817930427,-500.0,0.00015068,2]
[323217447,1713817930437,-500.0,0.00015068,2]
[323217448,1713817930446,-500.0,0.00015068,2]
[323217449,1713817930456,-847.4,0.00015068,2]
[323217450,1713817930465,-500.0,0.00015068,2]
[323217451,1713817930474,-500.0,0.00015068,2]
[323217452,1713817930483,-889.65,0.00015068,2]
[323217453,1713817930492,-439.15,0.00015068,2]
[323217454,1713817930501,-1857.12,0.00015068,2]
[323217455,1713817930511,-500.0,0.00015068,2]
[323217456,1713817930520,-1458.35,0.00015068,2]
[323217457,1713817930530,-1346.71,0.00015068,2]
[323217458,1713817930541,-1384.06,0.00015068,2]
[323217459,1713817930551,-797.75,0.00015068,2]
[323217460,1713817930561,-838.1,0.00015068,2]
[323217461,1713817930570,-500.0,0.00015068,2]
[323217462,1713817930580,-666.81,0.00015068,2]
[323217463,1713817930590,-500.0,0.00015068,2]
[323217464,1713817930600,-500.0,0.00015068,2]
[323217465,1713817930609,-562.19,0.00015068,2]
[323217466,1713817930618,-515.46,0.00015068,2]
[323217467,1713817930627,-500.0,0.00015068,2]
[323217468,1713817930637,-500.0,0.00015068,2]
[323217469,1713817930648,-500.0,0.00015068,2]
[323217470,1713817930657,-500.0,0.00015068,2]
[323217471,1713817930667,-500.0,0.00015068,2]
[323217472,1713817930676,-500.0,0.00015068,2]
[323217473,1713817930686,-1234.42,0.00015068,2]
[323217474,1713817930695,-500.0,0.00015068,2]
[323217475,1713817930704,-1329.82,0.00015068,2]
[323217476,1713817930714,-500.0,0.00015068,2]
[323217477,1713817930723,-982.2,0.00015068,2]
[323217478,1713817930732,-2343.61,0.00015068,2]
[323217479,1713817930741,-500.0,0.00015068,2]
[323217480,1713817930750,-1458.64,0.00015068,2]
[323217481,1713817930761,-500.0,0.00015068,2]
[323217482,1713817930770,-847.85,0.00015068,2]
[323217483,1713817930779,-500.0,0.00015068,2]
[323217484,1713817930788,-1545.79,0.00015068,2]
[323217485,1713817930798,-501.57929725,0.00015068,2]
[323217486,1713817930807,-500.0,0.00015068,2]
[323217487,1713817930817,-3597.84,0.00015068,2]
[323217488,1713817930826,-500.0,0.00015068,2]
[323217489,1713817930836,-715.1,0.00015068,2]
[323217490,1713817930845,-1733.17,0.00015068,2]
[323217491,1713817930855,-1489.81,0.00015068,2]
[323217492,1713817930865,-500.0,0.00015068,2]
[323217493,1713817930879,-500.0,0.00015068,2]
[323217494,1713817930888,-1331.5,0.00015068,2]
[323217495,1713817930897,-500.0,0.00015068,2]
[323217496,1713817930907,-1524.01,0.00015068,2]
[323217497,1713817930918,-500.0,0.00015068,2]
[323217498,1713817930930,-1445.52,0.00015068,2]
[323217499,1713817930939,-521.23,0.00015068,2]
[323217500,1713817930948,-503.82955322,0.00015068,2]
[323217501,1713817930960,-1681.34,0.00015068,2]
[323217502,1713817930970,-500.0,0.00015068,2]
[323217503,1713817930979,-299.80343688,0.00015068,2]
[323217504,1713817930989,-500.0,0.00015068,2]
[323217505,1713817930998,-1162.45,0.00015068,2]
[323217506,1713817931008,-500.0,0.00015068,2]
[323217507,1713817931017,-1395.37,0.00015068,2]
[323217508,1713817931026,-619.96,0.00015068,2]
[323217509,1713817931036,-500.0,0.00015068,2]
[323217510,1713817931046,-255.26,0.00015068,2]
[323217511,1713817931055,-850.51,0.00015068,2]
[323217512,1713817931065,-500.0,0.00015068,2]
[323217513,1713817931075,-500.0,0.00015068,2]
[323217514,1713817931085,-506.51995861,0.00015068,2]
[323217515,1713817931094,-500.0,0.00015068,2]
[323217516,1713817931104,-651.79,0.00015068,2]
[323217517,1713817931113,-1280.9,0.00015068,2]
[323217518,1713817931122,-1459.47,0.00015068,2]
[323217519,1713817931132,-500.0,0.00015068,2]
[323217520,1713817931142,-500.0,0.00015068,2]
[323217521,1713817931151,-534.9,0.00015068,2]
[323217522,1713817931160,-500.0,0.00015068,2]
[323217523,1713817931170,-500.0,0.00015068,2]
[323217524,1713817931180,-500.0,0.00015068,2]
[323217525,1713817931190,-538.6,0.00015068,2]
[323217526,1713817931199,-500.0,0.00015068,2]
[323217527,1713817931208,-1610.79,0.00015068,2]
[323217528,1713817931218,-500.0,0.00015068,2]
[323217529,1713817931228,-537.01,0.00015068,2]
[323217530,1713817931239,-502.97027438,0.00015068,2]
[323217531,1713817931249,-514.88,0.00015068,2]
[323217532,1713817931261,-500.0,0.00015068,2]
[323217533,1713817931270,-1363.17,0.00015068,2]
[323217534,1713817931281,-786.16,0.00015068,2]
[323217535,1713817931290,-501.06622591,0.00015068,2]
[323217536,1713817931300,-500.0,0.00015068,2]
[323217537,1713817931311,-746.38,0.00015068,2]
[323217538,1713817931321,-788.48,0.00015068,2]
[323217539,1713817931332,-500.0,0.00015068,2]
[323217540,1713817931342,-500.0,0.00015068,2]
[323217541,1713817931352,-1371.5,0.00015068,2]
[323217542,1713817931361,-500.0,0.00015068,2]
[323217543,1713817931370,-572.35,0.00015068,2]
[323217544,1713817931379,-500.0,0.00015068,2]
[323217545,1713817931388,-1639.44,0.00015068,2]
[323217546,1713817931398,-1080.61,0.00015068,2]
[323217547,1713817931407,-500.0,0.00015068,2]
[323217548,1713817931416,-927.48,0.00015068,2]
[323217549,1713817931425,-500.0,0.00015068,2]
[323217550,1713817931435,-500.0,0.00015068,2]
[323217551,1713817931445,-500.0,0.00015068,2]
[323217552,1713817931457,-2417.44,0.00015068,2]
[323217553,1713817931469,-1053.33,0.00015068,2]
[323217554,1713817931490,-500.0,0.00015068,2]
[323217555,1713817931506,-820.45,0.00015068,2]
[323217556,1713817931515,-500.0,0.00015068,2]
[323217557,1713817931525,-500.0,0.00015068,2]
[323217558,1713817931534,-500.0,0.00015068,2]
[323217559,1713817931543,-500.0,0.00015068,2]
[323217560,1713817931552,-182.19180815,0.00015068,2]
[323217561,1713817931562,-500.0,0.00015068,2]
[323217562,1713817931571,-616.6,0.00015068,2]
[323217563,1713817931580,-1496.35,0.00015068,2]
[323217564,1713817931590,-500.0,0.00015068,2]
[323217565,1713817931599,-500.0,0.00015068,2]
[323217566,1713817931608,-1901.34,0.00015068,2]
[323217567,1713817931617,-1504.69,0.00015068,2]
[323217568,1713817931627,-502.16036036,0.00015068,2]
[323217569,1713817931636,-531.85,0.00015068,2]
[323217570,1713817931645,-500.0,0.00015068,2]
[323217571,1713817931654,-500.0,0.00015068,2]
[323217572,1713817931663,-549.16,0.00015068,2]
[323217573,1713817931673,-1164.49,0.00015068,2]
[323217574,1713817931682,-1596.3,0.00015068,2]
[323217575,1713817931692,-500.0,0.00015068,2]
[323217576,1713817931701,-1438.6,0.00015068,2]
[323217577,1713817931710,-500.0,0.00015068,2]
[323217578,1713817931721,-500.0,0.00015068,2]
[323217579,1713817931732,-500.0,0.00015068,2]
[323217580,1713817931742,-1493.64,0.00015068,2]
[323217581,1713817931754,-693.72,0.00015068,2]
[323217582,1713817931764,-889.74,0.00015068,2]
[323217583,1713817931774,-500.0,0.00015068,2]
[323217584,1713817931784,-1296.17,0.00015068,2]
[323217585,1713817931793,-500.0,0.00015068,2]
[323217586,1713817931802,-1184.52,0.00015068,2]
[323217587,1713817931812,-1024.32,0.00015068,2]
[323217588,1713817931821,-675.02,0.00015068,2]
[323217589,1713817931832,-1243.7,0.00015068,2]
[323217590,1713817931841,-500.0,0.00015068,2]
[323217591,1713817931851,-2073.0,0.00015068,2]
[323217592,1713817931861,-1364.07,0.00015068,2]
[323217593,1713817931871,-1245.39,0.00015068,2]
[323217594,1713817931882,-501.45413688,0.00015068,2]
[323217595,1713817931891,-500.0,0.00015068,2]
[323217596,1713817931901,-500.0,0.00015068,2]
[323217597,1713817931910,-500.0,0.00015068,2]
[323217598,1713817931920,-465.08215477,0.00015068,2]
[323217599,1713817931929,-500.0,0.00015068,2]
[323217600,1713817931938,-500.0,0.00015068,2]
[323217601,1713817931948,-500.0,0.00015068,2]
[323217602,1713817931958,-535.52163994,0.00015068,2]
[323217603,1713817931967,-1343.23,0.00015068,2]
[323217604,1713817931977,-500.0,0.00015068,2]
[323217605,1713817931987,-785.15,0.00015068,2]
[323217606,1713817931997,-500.0,0.00015068,2]
[323217607,1713817932007,-1627.92,0.00015068,2]
[323217608,1713817932016,-1663.91,0.00015068,2]
[323217609,1713817932025,-1215.57,0.00015068,2]
[323217610,1713817932035,-500.0,0.00015068,2]
[323217611,1713817932044,-500.0,0.00015068,2]
[323217612,1713817932054,-500.0,0.00015068,2]
[323217613,1713817932063,-500.0,0.00015068,2]
[323217614,1713817932072,-1013.21,0.00015068,2]
[323217615,1713817932082,-500.0,0.00015068,2]
[323217616,1713817932092,-500.0,0.00015068,2]
[323217617,1713817932101,-500.0,0.00015068,2]
[323217618,1713817932110,-345.8976493,0.00015068,2]
[323217619,1713817932119,-1496.62,0.00015068,2]
[323217620,1713817932128,-781.7,0.00015068,2]
[323217621,1713817932138,-1208.61,0.00015068,2]
[323217622,1713817932148,-1291.68,0.00015068,2]
[323217623,1713817932157,-500.0,0.00015068,2]
[323217624,1713817932167,-500.0,0.00015068,2]
[323217625,1713817932176,-1167.1,0.00015068,2]
[323217626,1713817932185,-500.0,0.00015068,2]
[323217627,1713817932195,-197.44120558,0.00015068,2]
[323217628,1713817932204,-636.48,0.00015068,2]
[323217629,1713817932214,-500.0,0.00015068,2]
[323217630,1713817932224,-500.0,0.00015068,2]
[323217631,1713817932233,-979.58,0.00015068,2]
[323217632,1713817932246,-751.72,0.00015068,2]
[323217633,1713817932256,-1192.84,0.00015068,2]
[323217634,1713817932266,-507.91,0.00015068,2]
[323217635,1713817932275,-1367.4,0.00015068,2]
[323217636,1713817932285,-1643.75,0.00015068,2]
[323217637,1713817932295,-525.05,0.00015068,2]
[323217638,1713817932305,-1037.47,0.00015068,2]
[323217639,1713817932314,-500.0,0.00015068,2]
[323217640,1713817932323,-1478.09,0.00015068,2]
[323217641,1713817932332,-535.15,0.00015068,2]
[323217642,1713817932342,-401.07350359,0.00015068,2]
[323217643,1713817932351,-500.0,0.00015068,2]
[323217644,1713817932360,-504.89,0.00015068,2]
[323217645,1713817932369,-501.27619182,0.00015068,2]
[323217646,1713817932486,-627.98,0.00015068,2]
[323217647,1713817932495,-516.26210715,0.00015068,2]
[323217648,1713817932505,-1198.94,0.00015068,2]
[323217649,1713817932514,-849.45,0.00015068,2]
[323217650,1713817932522,-1578.31,0.00015068,2]
[323217651,1713817932532,-2383.31,0.00015068,2]
[323217652,1713817932541,-500.0,0.00015068,2]
[323217653,1713817932550,-2746.92,0.00015068,2]
[323217654,1713817932559,-500.0,0.00015068,2]
[323217655,1713817932568,-500.0,0.00015068,2]
[323217656,1713817932577,-500.0,0.00015068,2]
[323217657,1713817932586,-498.20746933,0.00015068,2]
[323217658,1713817932596,-1045.49,0.00015068,2]
[323217659,1713817932605,-500.0,0.00015068,2]
[323217660,1713817932614,-1276.4,0.00015068,2]
[323217661,1713817932623,-500.0,0.00015068,2]
[323217662,1713817932632,-1445.62,0.00015068,2]
[323217663,1713817932642,-1072.72,0.00015068,2]
[323217664,1713817932651,-1106.72,0.00015068,2]
[323217665,1713817932660,-500.0,0.00015068,2]
[323217666,1713817932669,-1533.64,0.00015068,2]
[323217667,1713817932678,-500.0,0.00015068,2]
[323217668,1713817932688,-3284.68,0.00015068,2]
[323217669,1713817932697,-500.0,0.00015068,2]
[323217670,1713817932707,-2296.08,0.00015068,2]
[323217671,1713817932716,-851.02,0.00015068,2]
[323217672,1713817932725,-500.0,0.00015068,2]
[323217673,1713817932734,-500.0,0.00015068,2]
[323217674,1713817932744,-788.12,0.00015068,2]
[323217675,1713817932753,-2404.29,0.00015068,2]
[323217676,1713817932762,-1657.26,0.00015068,2]
[323217677,1713817932771,-500.0,0.00015068,2]
[323217678,1713817932780,-500.0,0.00015068,2]
[323217679,1713817932789,-2538.83,0.00015068,2]
[323217680,1713817932798,-500.0,0.00015068,2]
[323217681,1713817932808,-500.0,0.00015068,2]
[323217682,1713817932817,-552.91,0.00015068,2]
[323217683,1713817932826,-1596.02,0.00015068,2]
[323217684,1713817932835,-1577.46,0.00015068,2]
[323217685,1713817932844,-500.0,0.00015068,2]
[323217686,1713817932853,-1894.81,0.00015068,2]